bitfinex/quotes_BTCUSD_20250714
["timestamp","ask_amount","ask_price","bid_price","bid_amount"]
[1752482081745,0.5993803,122470.0,122460.0,0.27161243]
[1752482082205,0.5993803,122470.0,122460.0,0.12528]
[1752482084941,0.17966469,122450.0,122440.0,0.25591535]
[1752482085127,0.17966469,122450.0,122440.0,0.46250246]
[1752482085402,0.17966469,122450.0,122440.0,0.33726246]
[1752482085611,0.17966469,122450.0,122440.0,0.46250246]
[1752482086419,0.18800212,122450.0,122440.0,0.33726246]
[1752482086665,0.18783122,122450.0,122440.0,0.71454908]
[1752482086908,0.18883122,122450.0,122440.0,0.71454908]
[1752482087120,0.1724985,122450.0,122440.0,0.52670246]
[1752482087323,0.16433197,122450.0,122440.0,0.52670246]
[1752482087778,0.16433197,122450.0,122440.0,0.33726246]
[1752482087967,0.48501192,122450.0,122440.0,0.19083766]
[1752482088207,0.48501192,122450.0,122440.0,0.31607766]
[1752482088443,0.54881192,122450.0,122440.0,0.31607766]
[1752482088906,0.55749639,122450.0,122440.0,0.31607766]
[1752482089136,0.55749639,122450.0,122440.0,0.19083766]
[1752482089372,0.55749639,122450.0,122440.0,0.00015334]
[1752482089616,0.55749639,122450.0,122440.0,0.12539334]
[1752482089834,0.57203724,122450.0,122440.0,0.00015334]
[1752482090045,0.57203724,122450.0,122440.0,0.12539334]
[1752482090046,0.62016724,122450.0,122440.0,0.12539334]
[1752482091130,0.62016724,122450.0,122440.0,0.00015334]
[1752482091346,0.5960386,122450.0,122440.0,0.12539334]
[1752482091800,0.5960386,122450.0,122440.0,0.00015334]
[1752482092035,0.5960386,122450.0,122440.0,0.12539334]
[1752482092490,0.5960386,122450.0,122440.0,0.00015334]
[1752482092705,0.5960386,122450.0,122440.0,0.12539334]
[1752482094877,0.57203724,122450.0,122440.0,0.12539334]
[1752482101236,0.57203724,122450.0,122440.0,0.00015334]
[1752482101463,0.18855729,122450.0,122440.0,0.12535334]
[1752482101681,0.16533197,122450.0,122440.0,0.44731098]
[1752482101896,0.18166462,122450.0,122440.0,0.83353752]
[1752482102105,0.02649904,122450.0,122440.0,0.72467131]
[1752482102308,0.02649844,122450.0,122440.0,0.8580381]
[1752482102519,0.03466483,122450.0,122440.0,0.8580381]
[1752482102737,0.0346649,122450.0,122440.0,0.53835815]
[1752482102954,0.18983122,122450.0,122440.0,0.50569058]
[1752482103369,0.18983122,122450.0,122440.0,0.20897814]
[1752482103578,0.18166496,122450.0,122440.0,0.35051253]
[1752482103785,0.18166496,122450.0,122440.0,0.5220249]
[1752482103991,0.18166496,122450.0,122440.0,0.53019189]
[1752482104216,0.18166496,122450.0,122440.0,0.5220249]
[1752482104433,0.18166496,122450.0,122440.0,0.51385784]
[1752482104644,0.18166496,122450.0,122440.0,0.50569071]
[1752482104860,0.18166496,122450.0,122440.0,0.5138579]
[1752482105072,0.18166496,122450.0,122440.0,0.52202503]
[1752482105491,0.1734985,122450.0,122440.0,0.52202503]
[1752482105725,0.1734985,122450.0,122440.0,0.5138579]
[1752482105922,0.1734985,122450.0,122440.0,0.5138179]
[1752482106131,0.16533197,122450.0,122440.0,0.3423054]
[1752482107233,0.16533197,122450.0,122440.0,0.51381784]
[1752482107853,0.16533197,122450.0,122440.0,0.50565071]
[1752482108055,0.16533197,122450.0,122440.0,0.5138179]
[1752482108265,0.01833252,122450.0,122440.0,0.39682489]
[1752482108508,0.18166449,122450.0,122440.0,0.53015182]
[1752482109396,0.02649878,122450.0,122440.0,0.53831868]
[1752482109603,0.18983122,122450.0,122440.0,0.52198489]
[1752482109806,0.18983122,122450.0,122440.0,0.53015182]
[1752482110015,0.19799781,122450.0,122440.0,0.53015182]
[1752482110554,0.18983155,122450.0,122440.0,0.44874021]
[1752482110977,0.18983155,122450.0,122440.0,0.45690734]
[1752482111165,0.18166509,122450.0,122440.0,0.44874021]
[1752482111607,0.18166509,122450.0,122440.0,0.4650744]
[1752482112010,0.17349856,122450.0,122440.0,0.32358021]
[1752482112195,0.17349856,122450.0,122440.0,0.44874021]
[1752482112821,0.16533197,122450.0,122440.0,0.26906045]
[1752482113685,0.16533197,122450.0,122440.0,0.14390045]
[1752482113898,0.48501192,122450.0,122440.0,0.20662045]
[1752482114334,0.48501192,122450.0,122440.0,0.23912045]
[1752482115170,0.48501192,122450.0,122440.0,0.27062045]
[1752482115578,0.48501192,122450.0,122440.0,0.14550045]
[1752482115810,0.48501192,122450.0,122440.0,0.27062045]
[1752482117821,0.48501192,122450.0,122440.0,0.00015334]
[1752482118005,0.54901192,122450.0,122440.0,0.12527334]
[1752482118247,0.54901192,122450.0,122440.0,0.00015334]
[1752482118498,0.54901192,122450.0,122440.0,0.12527334]
[1752482118953,0.17349856,122450.0,122440.0,0.06445334]
[1752482119191,0.18166502,122450.0,122440.0,0.14580045]
[1752482119410,0.18166502,122450.0,122440.0,0.27092045]
[1752482120285,0.50134497,122450.0,122440.0,0.00015334]
[1752482120497,0.50134497,122450.0,122440.0,0.12527334]
[1752482121680,0.50134497,122450.0,122440.0,0.00015334]
[1752482121921,0.24955329,122440.0,122430.0,0.14671666]
[1752482122180,0.64794956,122420.0,122410.0,1e-08]
[1752482122433,1.04897662,122420.0,122410.0,1e-08]
[1752482122619,1.12405662,122420.0,122410.0,1e-08]
[1752482122828,0.00817073,122380.0,122370.0,0.62603934]
[1752482123026,0.2042803,122380.0,122370.0,0.70738685]
[1752482123370,0.19610957,122380.0,122370.0,0.52095863]
[1752482123584,0.19510957,122380.0,122370.0,0.51278696]
[1752482123784,0.18668831,122380.0,122370.0,0.52095863]
[1752482123982,0.18668831,122380.0,122370.0,0.40405023]
[1752482124166,0.02326285,122380.0,122370.0,0.40405023]
[1752482124376,0.03148513,122380.0,122370.0,0.52099863]
[1752482124618,0.03148507,122380.0,122370.0,0.52099863]
[1752482124830,0.03148507,122380.0,122370.0,0.53734136]
[1752482125246,0.03148507,122380.0,122370.0,0.85702131]
[1752482125458,0.031485,122380.0,122370.0,0.85702131]
[1752482125659,0.02331387,122380.0,122370.0,0.85702131]
[1752482125877,0.01514281,122380.0,122370.0,0.73190131]
[1752482126096,0.01514281,122380.0,122370.0,1.07290131]
[1752482126097,5.102e-05,122380.0,122370.0,1.07290131]
[1752482126312,5.102e-05,122380.0,122370.0,1.19798131]
[1752482126527,5.102e-05,122380.0,122370.0,1.07290131]
[1752482126740,0.03267812,122400.0,122390.0,0.25282303]
[1752482126950,0.04084792,122400.0,122390.0,0.77912349]
[1752482127164,0.02450879,122400.0,122390.0,0.77912356]
[1752482127376,0.02450879,122400.0,122390.0,0.46761374]
[1752482127590,0.04084845,122400.0,122390.0,0.77912356]
[1752482128453,0.03267892,122400.0,122390.0,0.45940367]
[1752482129134,0.03567892,122400.0,122390.0,0.45940367]
[1752482129342,0.18273835,122400.0,122390.0,0.08150051]
[1752482129572,0.18273835,122400.0,122390.0,0.20658051]
[1752482130047,0.18273835,122400.0,122390.0,0.21475111]
[1752482130280,0.01933926,122400.0,122390.0,0.39450401]
[1752482130488,0.02750906,122400.0,122390.0,0.4746444]
[1752482130697,0.03567892,122400.0,122390.0,0.79432442]
[1752482131147,0.03567892,122400.0,122390.0,0.79432395]
[1752482131557,0.04384885,122400.0,122390.0,0.78615382]
[1752482131765,0.19907801,122400.0,122390.0,0.77798362]
[1752482131987,0.19907801,122400.0,122390.0,0.46647387]
[1752482132229,0.18928375,122400.0,122390.0,0.45830367]
[1752482132439,0.19945348,122400.0,122390.0,0.46647387]
[1752482132654,0.02788486,122400.0,122390.0,0.46647387]
[1752482133290,0.03605479,122400.0,122390.0,0.46647387]
[1752482133694,0.19945348,122400.0,122390.0,0.45830367]
[1752482133843,0.03605479,122400.0,122390.0,0.474644]
[1752482134080,0.02788486,122400.0,122390.0,0.474644]
[1752482134437,0.02788486,122400.0,122390.0,0.33322367]
[1752482134610,0.19128355,122400.0,122390.0,0.45013341]
[1752482136008,0.19128355,122400.0,122390.0,0.14530051]
[1752482136009,0.18311382,122400.0,122390.0,0.14530051]
[1752482136210,0.17494402,122400.0,122390.0,0.20658051]
[1752482136415,0.17494402,122400.0,122390.0,0.08150051]
[1752482136680,0.17494402,122400.0,122390.0,0.20658051]
[1752482136815,0.17494402,122400.0,122390.0,0.08150051]
[1752482137015,0.17494402,122400.0,122390.0,0.0001534]
[1752482137016,0.49462397,122400.0,122390.0,0.0001534]
[1752482137235,0.52672397,122400.0,122390.0,0.1252334]
[1752482137669,0.17494402,122400.0,122390.0,0.0001534]
[1752482138027,0.17494402,122400.0,122390.0,0.1252334]
[1752482138606,0.17494402,122400.0,122390.0,0.0001534]
[1752482138776,0.17494402,122400.0,122390.0,0.1252334]
[1752482138985,0.17494402,122400.0,122390.0,0.0001534]
[1752482139194,0.17494402,122400.0,122390.0,0.1252334]
[1752482142315,0.18311368,122400.0,122390.0,0.17990644]
[1752482142522,0.19128361,122400.0,122390.0,0.70340685]
[1752482143168,0.19128361,122400.0,122390.0,0.68706639]
[1752482143378,0.19128361,122400.0,122390.0,0.69523672]
[1752482143803,0.19128361,122400.0,122390.0,0.70340692]
[1752482144014,0.19128361,122400.0,122390.0,0.69523672]
[1752482144229,0.19128361,122400.0,122390.0,0.70340698]
[1752482144445,0.19128361,122400.0,122390.0,0.38372703]
[1752482145739,0.19128361,122400.0,122390.0,0.39189723]
[1752482145949,0.19128361,122400.0,122390.0,0.25047677]
[1752482146162,0.19128361,122400.0,122390.0,0.37551677]
[1752482146378,0.19128361,122400.0,122390.0,0.25047677]
[1752482146583,0.19128361,122400.0,122390.0,0.37551677]
[1752482146792,0.19128361,122400.0,122390.0,0.38368703]
[1752482147870,0.19128361,122400.0,122390.0,0.36734644]
[1752482148100,0.19128361,122400.0,122390.0,0.37551677]
[1752482148308,0.17494409,122400.0,122390.0,0.36734657]
[1752482148530,0.17494409,122400.0,122390.0,0.37551703]
[1752482148724,0.17494409,122400.0,122390.0,0.38368736]
[1752482148857,0.17494409,122400.0,122390.0,0.39185762]
[1752482149048,0.17494409,122400.0,122390.0,0.37551703]
[1752482149251,0.17494409,122400.0,122390.0,0.38368736]
[1752482149466,0.17494409,122400.0,122390.0,0.37551703]
[1752482151036,0.17506231,122400.0,122390.0,0.38368736]
[1752482151207,0.17506231,122400.0,122390.0,0.37551703]
[1752482151988,0.17506231,122400.0,122390.0,0.39185756]
[1752482152171,0.02788427,122400.0,122390.0,0.85784402]
[1752482152592,0.01971447,122400.0,122390.0,0.85784402]
[1752482152984,0.02788427,122400.0,122390.0,0.85784402]
[1752482153243,0.01971447,122400.0,122390.0,0.85784402]
[1752482153436,0.0278842,122400.0,122390.0,0.85784402]
[1752482153778,0.01971447,122400.0,122390.0,0.85784402]
[1752482153976,0.0197144,122400.0,122390.0,0.85784402]
[1752482154178,0.02788413,122400.0,122390.0,0.85784402]
[1752482154500,0.02788406,122400.0,122390.0,0.85784402]
[1752482154705,0.00337547,122400.0,122390.0,0.85784402]
[1752482154948,0.01154487,122400.0,122390.0,0.85784402]
[1752482155144,0.01971433,122400.0,122390.0,0.85784402]
[1752482155344,0.02021433,122400.0,122390.0,0.85784402]
[1752482155491,0.02838393,122400.0,122390.0,0.85784402]
[1752482155898,0.02838399,122400.0,122390.0,0.85784402]
[1752482156210,0.02838393,122400.0,122390.0,0.85784402]
[1752482156640,0.00387547,122400.0,122390.0,0.85784402]
[1752482156800,0.01204487,122400.0,122390.0,0.85784402]
[1752482156999,0.0202144,122400.0,122390.0,0.85784402]
[1752482158557,0.02838406,122400.0,122390.0,0.85784402]
[1752482159455,0.02838406,122400.0,122390.0,0.47308638]
[1752482159662,0.03655386,122400.0,122390.0,0.47308638]
[1752482159885,0.02838406,122400.0,122390.0,0.47308638]
[1752482160505,0.03655386,122400.0,122390.0,0.47308638]
[1752482160715,0.02838406,122400.0,122390.0,0.47308638]
[1752482161126,0.0202144,122400.0,122390.0,0.47308638]
[1752482161325,0.01204487,122400.0,122390.0,0.47308638]
[1752482161535,0.0202144,122400.0,122390.0,0.47308638]
[1752482162074,0.02838406,122400.0,122390.0,0.47308638]
[1752482162277,0.02838406,122400.0,122390.0,0.79276633]
[1752482162955,0.03655379,122400.0,122390.0,0.79276633]
[1752482163375,0.03655379,122400.0,122390.0,0.47308638]
[1752482163592,0.0202144,122400.0,122390.0,0.79276633]
[1752482164005,0.028384,122400.0,122390.0,0.79276633]
[1752482164583,0.01204487,122400.0,122390.0,0.79276633]
[1752482164808,0.00387547,122400.0,122390.0,1.45244628]
[1752482165461,0.02450091,122440.0,122430.0,0.50754158]
[1752482165691,0.02450091,122440.0,122430.0,0.43782163]
[1752482165917,0.01633372,122440.0,122430.0,0.43782163]
[1752482166150,0.02450085,122440.0,122430.0,0.43782163]
[1752482166369,0.02450078,122440.0,122430.0,0.50012163]
[1752482166590,0.02450078,122440.0,122430.0,0.58146874]
[1752482166824,0.00832018,122440.0,122430.0,0.58146874]
[1752482167058,0.00015339,122440.0,122430.0,0.90114869]
[1752482167514,0.00015339,122440.0,122430.0,1.24114869]
[1752482168174,0.00015339,122440.0,122430.0,1.43698869]
[1752482169094,0.00015339,122440.0,122430.0,1.12574365]
[1752482169298,0.00015339,122440.0,122430.0,1.4464236]
[1752482171856,0.00015339,122440.0,122430.0,1.12674365]
[1752482172102,0.00015339,122440.0,122430.0,1.4464236]
[1752482173626,2.446e-05,122440.0,122430.0,1.12674365]
[1752482173834,2.446e-05,122440.0,122430.0,1.4464236]
[1752482175852,0.02449838,122450.0,122440.0,0.18784628]
[1752482176056,0.02449838,122450.0,122440.0,0.51903339]
[1752482176263,0.03266484,122450.0,122440.0,0.51903339]
[1752482176884,0.02449838,122450.0,122440.0,0.51903339]
[1752482177086,0.03266477,122450.0,122440.0,0.51903339]
[1752482177291,0.02549838,122450.0,122440.0,0.51903339]
[1752482177496,0.03366471,122450.0,122440.0,0.51903339]
[1752482177934,0.02549838,122450.0,122440.0,0.51903339]
[1752482178574,0.02649838,122450.0,122440.0,0.51903339]
[1752482179328,0.03466477,122450.0,122440.0,0.51903339]
[1752482180144,0.04283177,122450.0,122440.0,0.5108666]
[1752482180352,0.04283223,122450.0,122440.0,0.52720039]
[1752482180774,0.03466564,122450.0,122440.0,0.52720039]
[1752482181105,0.03466564,122450.0,122440.0,0.52720032]
[1752482181311,0.03466564,122450.0,122440.0,0.52720039]
[1752482181430,0.52584415,122450.0,122440.0,0.08134711]
[1752482181796,0.52584415,122450.0,122430.0,0.19584]
[1752482181797,0.23621244,122440.0,122430.0,0.19584]
[1752482182135,0.87557234,122440.0,122430.0,0.19584]
[1752482182597,0.87557234,122440.0,122400.0,0.38471794]
[1752482182598,0.00816873,122410.0,122400.0,0.38471794]
[1752482182832,0.01633766,122410.0,122400.0,0.9392679]
[1752482183145,0.02450672,122410.0,122400.0,0.9392679]
[1752482183361,0.03267585,122410.0,122400.0,0.62390965]
[1752482183575,0.03267585,122410.0,122400.0,0.74878965]
[1752482183808,0.02450672,122410.0,122400.0,0.74878965]
[1752482184017,0.01633766,122410.0,122400.0,0.74878965]
[1752482184138,0.02450672,122410.0,122400.0,0.74978965]
[1752482184349,0.02450672,122410.0,122400.0,0.62490965]
[1752482184551,0.03267592,122410.0,122400.0,0.62490965]
[1752482184758,0.02450672,122410.0,122400.0,0.62490965]
[1752482184968,0.02450672,122410.0,122400.0,0.74978965]
[1752482185202,0.01633766,122410.0,122400.0,0.74978965]
[1752482185430,0.01633766,122410.0,122400.0,0.75078965]
[1752482186466,0.01633759,122410.0,122400.0,0.75078965]
[1752482186883,0.02450659,122410.0,122400.0,0.75078965]
[1752482187522,0.01633759,122410.0,122400.0,0.75078965]
[1752482187731,0.02450659,122410.0,122400.0,0.62590965]
[1752482187962,0.01633759,122410.0,122400.0,0.75078965]
[1752482188360,0.01633759,122410.0,122400.0,1.0704696]
[1752482188771,0.01633759,122410.0,122400.0,0.9455896]
[1752482189017,0.01633759,122410.0,122400.0,1.0704696]
[1752482189555,0.02450659,122410.0,122400.0,1.0704696]
[1752482190089,0.01633759,122410.0,122400.0,1.0704696]
[1752482190278,0.02450659,122410.0,122400.0,1.0704696]
[1752482190777,0.02450659,122410.0,122400.0,0.75078965]
[1752482190985,0.01633759,122410.0,122400.0,1.0704696]
[1752482191183,0.02450659,122410.0,122400.0,1.0704696]
[1752482191590,0.03267572,122410.0,122400.0,0.62590965]
[1752482191881,0.02450659,122410.0,122400.0,0.75078965]
[1752482192423,0.01633759,122410.0,122400.0,0.75078965]
[1752482193014,0.01633759,122410.0,122400.0,0.62590965]
[1752482193218,0.01633759,122410.0,122400.0,0.75078965]
[1752482193364,0.01633759,122410.0,122400.0,0.81538965]
[1752482194325,0.01633759,122410.0,122400.0,1.1350696]
[1752482194908,0.02450659,122410.0,122400.0,1.1350696]
[1752482195138,0.02450652,122410.0,122400.0,1.1350696]
[1752482195336,0.01633759,122410.0,122400.0,1.1029696]
[1752482196070,0.02450652,122410.0,122400.0,1.1029696]
[1752482196684,0.03267558,122410.0,122400.0,1.1029696]
[1752482196889,0.03267558,122410.0,122400.0,0.9780896]
[1752482197102,0.02450652,122410.0,122400.0,1.1029696]
[1752482197308,0.02450652,122410.0,122400.0,1.3986696]
[1752482197667,0.03267565,122410.0,122400.0,0.95410965]
[1752482197890,0.03267558,122410.0,122400.0,1.3986696]
[1752482198866,0.02450652,122410.0,122400.0,1.3986696]
[1752482199207,0.03267552,122410.0,122400.0,1.3986696]
[1752482199710,0.04084465,122410.0,122400.0,1.3986696]
[1752482199907,0.03267552,122410.0,122400.0,1.3986696]
[1752482200209,0.04084465,122410.0,122400.0,1.3986696]
[1752482200463,0.03267552,122410.0,122400.0,1.3986696]
[1752482200664,0.04084465,122410.0,122400.0,1.3986696]
[1752482200790,0.03267552,122410.0,122400.0,1.3986696]
[1752482200995,0.03267552,122410.0,122400.0,1.2737896]
[1752482201194,0.00816873,122410.0,122400.0,1.3986296]
[1752482201404,0.01633766,122410.0,122400.0,1.4299296]
[1752482202129,0.00816873,122410.0,122400.0,1.4299296]
[1752482202358,0.01633759,122410.0,122400.0,1.4299296]
[1752482202588,0.02450665,122410.0,122400.0,0.98540965]
[1752482202817,0.02450665,122410.0,122400.0,1.4299296]
[1752482203636,0.03267578,122410.0,122400.0,1.4299296]
[1752482203844,0.02450665,122410.0,122400.0,1.4299296]
[1752482204054,0.01633753,122410.0,122400.0,1.3050896]
[1752482204258,0.01633753,122410.0,122400.0,1.4299296]
[1752482204470,0.01633753,122410.0,122400.0,1.3050896]
[1752482204892,0.01633753,122410.0,122400.0,1.4299296]
[1752482205114,0.17971616,122420.0,122400.0,1.4217594]
[1752482205357,0.01633618,122420.0,122410.0,0.58891919]
[1752482205570,0.19403197,122450.0,122430.0,0.17969417]
[1752482205802,0.19403197,122450.0,122430.0,0.58888882]
[1752482205803,0.03266791,122440.0,122430.0,0.58888882]
[1752482206038,0.00816713,122440.0,122430.0,0.70556123]
[1752482206236,0.17967943,122440.0,122430.0,1.10776123]
[1752482206447,0.03266778,122440.0,122430.0,1.09959357]
[1752482206676,0.17967943,122440.0,122430.0,0.45164711]
[1752482206892,0.17151244,122440.0,122430.0,0.42134711]
[1752482207107,0.17151244,122440.0,122430.0,0.54618711]
[1752482207316,0.17251244,122440.0,122430.0,0.54618711]
[1752482207490,0.17551244,122440.0,122430.0,0.54618711]
[1752482207694,0.17551244,122440.0,122430.0,0.42134711]
[1752482208111,0.16434531,122440.0,122430.0,0.54618711]
[1752482208536,0.16534531,122440.0,122430.0,0.54618711]
[1752482208945,0.16434531,122440.0,122430.0,0.54618711]
[1752482209338,0.16534531,122440.0,122430.0,0.54618711]
[1752482209946,0.16534531,122440.0,122430.0,0.42951497]
[1752482210156,0.16534531,122440.0,122430.0,0.55435497]
[1752482210569,0.16534531,122440.0,122430.0,0.72588141]
[1752482210776,0.16534531,122440.0,122430.0,0.60104141]
[1752482210974,0.16534531,122440.0,122430.0,0.72588141]
[1752482211693,0.16534531,122440.0,122430.0,0.92072136]
[1752482211843,0.16534531,122440.0,122430.0,0.86586706]
[1752482212056,0.16534531,122440.0,122430.0,0.87403499]
[1752482212436,0.16534531,122440.0,122430.0,0.88220285]
[1752482213138,0.16534531,122440.0,122430.0,0.89033064]
[1752482213571,0.16534531,122440.0,122430.0,0.87399499]
[1752482213776,0.16534531,122440.0,122430.0,0.88216285]
[1752482214373,0.16534531,122440.0,122430.0,0.89033064]
[1752482215122,0.16534531,122440.0,122430.0,1.05368929]
[1752482215331,0.16534531,122440.0,122430.0,0.55431504]
[1752482215570,0.16534531,122440.0,122430.0,0.4376829]
[1752482216004,0.16534531,122440.0,122430.0,0.44585069]
[1752482216214,0.16534531,122440.0,122430.0,0.57065069]
[1752482216654,0.16534531,122440.0,122430.0,0.44585069]
[1752482217083,0.16534531,122440.0,122430.0,0.73400934]
[1752482217572,0.16534531,122440.0,122430.0,0.72584155]
[1752482219209,0.16534531,122440.0,122430.0,0.73400934]
[1752482219487,0.16534531,122440.0,122430.0,0.55431504]
[1752482219925,0.16534531,122440.0,122430.0,0.54614711]
[1752482220096,0.16534531,122440.0,122430.0,0.42134711]
[1752482220303,0.16534531,122440.0,122430.0,0.54614711]
[1752482222923,0.16534531,122440.0,122430.0,0.42134711]
[1752482223191,0.16534531,122440.0,122430.0,0.42951504]
[1752482223389,0.16534531,122440.0,122430.0,0.54614711]
[1752482224413,0.16534531,122440.0,122430.0,0.34]
[1752482224560,0.22694531,122440.0,122430.0,0.1248]
[1752482224755,0.02450457,122420.0,122410.0,0.98441943]
[1752482224987,0.17970884,122420.0,122410.0,0.45404711]
[1752482225201,0.17970884,122420.0,122410.0,0.42134711]
[1752482225425,0.17970884,122420.0,122410.0,0.60704711]
[1752482225589,0.17154045,122420.0,122410.0,0.57694711]
[1752482225999,0.17154045,122420.0,122410.0,0.57794711]
[1752482226414,0.17154045,122420.0,122410.0,0.60814711]
[1752482226615,0.17154045,122420.0,122410.0,0.60914711]
[1752482227014,0.17154045,122420.0,122410.0,0.61731637]
[1752482227951,0.17970871,122420.0,122410.0,0.62548557]
[1752482228220,0.17970871,122420.0,122410.0,0.83670371]
[1752482228421,0.17970536,122430.0,122420.0,0.34]
[1752482228641,0.17970536,122430.0,122420.0,0.79260848]
[1752482228861,0.18787275,122430.0,122420.0,0.85850854]
[1752482229077,0.18787275,122430.0,122420.0,0.85033995]
[1752482229506,0.18787275,122430.0,122420.0,0.72557995]
[1752482229708,0.18787275,122430.0,122420.0,0.85033995]
[1752482230334,0.17970529,122430.0,122420.0,0.85033995]
[1752482230544,0.17970529,122430.0,122420.0,0.85850848]
[1752482230751,0.18787322,122430.0,122420.0,0.72557995]
[1752482231191,0.18787322,122430.0,122420.0,0.85033995]
[1752482231835,0.17970556,122430.0,122420.0,0.34]
[1752482232075,0.17970556,122430.0,122420.0,0.46476]
[1752482233356,0.17970556,122430.0,122420.0,0.47292859]
[1752482233575,0.17970556,122430.0,122420.0,0.46476]
[1752482233794,0.17970556,122430.0,122420.0,0.34]
[1752482234006,0.17153777,122430.0,122420.0,0.46476]
[1752482234242,0.17153777,122430.0,122420.0,0.34]
[1752482234464,0.16336984,122430.0,122420.0,0.46476]
[1752482234900,0.16436984,122430.0,122420.0,0.46476]
[1752482237438,0.16536984,122430.0,122420.0,0.46476]
[1752482237570,0.17353763,122430.0,122420.0,0.46476]
[1752482237775,0.18170522,122430.0,122420.0,0.4034]
[1752482238028,0.18987315,122430.0,122420.0,0.53632853]
[1752482238239,0.18170482,122430.0,122420.0,0.89462047]
[1752482238474,0.18987261,122430.0,122420.0,1.02754886]
[1752482238680,0.19804054,122430.0,122420.0,1.01938047]
[1752482239091,0.19804054,122430.0,122420.0,0.85600854]
[1752482239880,0.18987261,122430.0,122420.0,0.86417693]
[1752482240258,0.1980291,122430.0,122420.0,0.89462053]
[1752482240457,0.1980291,122430.0,122420.0,1.02754892]
[1752482240604,0.18986124,122430.0,122420.0,0.91095725]
[1752482241029,0.18986124,122430.0,122420.0,0.90278892]
[1752482241194,0.18986124,122430.0,122420.0,0.91095725]
[1752482241393,0.18986117,122430.0,122420.0,1.0520537]
[1752482241645,0.18986117,122430.0,122420.0,1.04388551]
[1752482241850,0.19802896,122430.0,122420.0,1.04388551]
[1752482242068,0.18986117,122430.0,122420.0,1.02754892]
[1752482242209,0.18986117,122430.0,122420.0,1.03571725]
[1752482242419,0.19802896,122430.0,122420.0,1.04388551]
[1752482242912,0.002,122430.0,122420.0,1.05209959]
[1752482243116,0.002,122430.0,122420.0,1.01685483]
[1752482243290,0.002,122430.0,122420.0,1.14161483]
[1752482245269,0.002,122430.0,122420.0,1.43731483]
[1752482245485,0.002,122430.0,122420.0,1.14161483]
[1752482245924,0.002,122430.0,122420.0,1.19055483]
[1752482246131,0.001,122430.0,122420.0,1.14161483]
[1752482246331,0.001,122430.0,122420.0,1.14261483]
[1752482246770,0.0326625,122460.0,122450.0,0.18783096]
[1752482246980,0.0326625,122460.0,122450.0,0.45529807]
[1752482247202,0.0326625,122460.0,122450.0,0.33057807]
[1752482247633,0.0326625,122460.0,122450.0,0.45529807]
[1752482248120,0.0336625,122460.0,122450.0,0.45529807]
[1752482248339,0.01733098,122460.0,122450.0,0.45529807]
[1752482248747,0.02549664,122460.0,122450.0,0.45529807]
[1752482248958,0.02549664,122460.0,122450.0,0.33057807]
[1752482249171,0.01733092,122460.0,122450.0,0.65025802]
[1752482249382,0.02549665,122460.0,122450.0,0.65025802]
[1752482249589,0.02549665,122460.0,122450.0,0.77497802]
[1752482250089,0.02549665,122460.0,122450.0,0.45529807]
[1752482250243,0.03366244,122460.0,122450.0,0.77497802]
[1752482250443,0.20514693,122460.0,122450.0,0.32057807]
[1752482250648,0.18881601,122460.0,122450.0,0.43896561]
[1752482250880,0.18881601,122460.0,122450.0,0.44713207]
[1752482251131,0.18981601,122460.0,122450.0,0.46346479]
[1752482251570,0.18981601,122460.0,122450.0,0.44713207]
[1752482251709,0.18981601,122460.0,122450.0,0.33057846]
[1752482251913,0.17348449,122460.0,122450.0,0.26746711]
[1752482252232,0.17348449,122460.0,122450.0,0.23706711]
[1752482252436,0.17348449,122460.0,122450.0,0.20606711]
[1752482253285,0.16531863,122460.0,122450.0,0.20606711]
[1752482254833,0.16531863,122460.0,122450.0,0.23746711]
[1752482255967,0.16531863,122460.0,122450.0,0.26916711]
[1752482256199,0.18165029,122460.0,122450.0,0.44066554]
[1752482256425,0.19798127,122460.0,122450.0,0.44066554]
[1752482256871,0.19798127,122460.0,122450.0,0.44883193]
[1752482257080,0.19798127,122460.0,122450.0,0.44066554]
[1752482257081,0.1979812,122460.0,122450.0,0.44066554]
[1752482258120,0.18981581,122460.0,122450.0,0.27733364]
[1752482258538,0.18981581,122460.0,122450.0,0.2855001]
[1752482259340,0.18981581,122460.0,122450.0,0.27733364]
[1752482259701,0.18981581,122460.0,122450.0,0.26916711]
[1752482259916,0.18981581,122460.0,122450.0,0.28550023]
[1752482260491,0.18981581,122460.0,122450.0,0.2773337]
[1752482261054,0.18981581,122460.0,122450.0,0.29366669]
[1752482261261,0.18981581,122460.0,122450.0,0.28550023]
[1752482261672,0.18165022,122460.0,122450.0,0.26916711]
[1752482262933,0.18165022,122460.0,122450.0,0.2773337]
[1752482263140,0.18165022,122460.0,122450.0,0.26916711]
[1752482263354,0.17348449,122460.0,122450.0,0.14444711]
[1752482263557,0.17348449,122460.0,122450.0,0.26912711]
[1752482264433,0.17348449,122460.0,122450.0,0.14444711]
[1752482264647,0.17348449,122460.0,122450.0,0.26912711]
[1752482265527,0.17149843,122450.0,122440.0,0.6991]
[1752482265764,0.49117838,122450.0,122440.0,0.42038]
[1752482265990,0.49117838,122450.0,122440.0,0.2957]
[1752482266237,0.17969403,122430.0,122420.0,0.1958]
[1752482266462,0.17969403,122430.0,122420.0,0.32063339]
[1752482266692,0.17969403,122430.0,122420.0,0.20412198]
[1752482266912,0.02450331,122430.0,122420.0,0.57191076]
[1752482267152,0.02450331,122430.0,122420.0,0.91191076]
[1752482267377,0.02450331,122430.0,122420.0,0.91191082]
[1752482267616,0.17152658,122430.0,122420.0,0.59935339]
[1752482267842,0.17152658,122430.0,122420.0,0.57582192]
[1752482268059,0.17152658,122430.0,122420.0,0.73070192]
[1752482268755,0.17152658,122430.0,122420.0,0.73887038]
[1752482268959,0.17152658,122430.0,122420.0,0.90224237]
[1752482269370,0.17252658,122430.0,122420.0,0.90224237]
[1752482269588,0.01733566,122430.0,122420.0,0.79389896]
[1752482269800,0.01733566,122430.0,122420.0,0.9104107]
[1752482270258,0.01733566,122430.0,122420.0,0.9114107]
[1752482270509,0.01733566,122430.0,122420.0,0.7867307]
[1752482270723,0.01633566,122430.0,122420.0,0.91957896]
[1752482272086,0.01633566,122430.0,122420.0,0.57957896]
[1752482272264,0.00816753,122430.0,122420.0,0.57957896]
[1752482272481,0.00816733,122430.0,122420.0,0.78274704]
[1752482272685,0.01633406,122440.0,122430.0,0.17969417]
[1752482272882,0.03266765,122440.0,122430.0,0.57084158]
[1752482273106,0.03266765,122440.0,122430.0,0.69552158]
[1752482273304,0.00816673,122440.0,122430.0,0.65218869]
[1752482273511,0.01633366,122440.0,122430.0,0.77686869]
[1752482273718,0.0408347,122440.0,122430.0,0.77686876]
[1752482273842,0.0408347,122440.0,122430.0,0.78503622]
[1752482274041,0.0418347,122440.0,122430.0,0.78503622]
[1752482274700,0.20518001,122440.0,122430.0,0.76053357]
[1752482274918,0.18884675,122440.0,122430.0,0.44085362]
[1752482275152,0.18067976,122440.0,122430.0,0.44085362]
[1752482275447,0.18167976,122440.0,122430.0,0.34085362]
[1752482275858,0.17351257,122440.0,122430.0,0.26932711]
[1752482276317,0.17351257,122440.0,122430.0,0.2856629]
[1752482276516,0.17351257,122440.0,122430.0,0.27749504]